fUSD/lending_fUSD_20260121
["ID","MTS","AMOUNT","RATE_DAILY","PERIOD"]
[402896659,1768956640762,-500.0,0.00017999,2]
[402896660,1768956640772,-500.0,0.00017999,2]
[402896661,1768956640782,-500.0,0.00017999,2]
[402896662,1768956640792,-518.79811587,0.00017999,2]
[402896663,1768956640802,-514.77489782,0.00017999,2]
[402896664,1768956640813,-2238982.14439634,0.00018,2]
[402896665,1768956642032,-500.0,0.00016497,2]
[402896666,1768956642041,-500.0,0.00016497,2]
[402896667,1768956642051,-500.0,0.00016497,2]
[402896668,1768956642060,-247.3237753,0.00016497,2]
[402896669,1768956642070,-500.0,0.00016497,2]
[402896670,1768956642079,-365.92088653,0.00016497,2]
[402896671,1768956642088,-771139.10951077,0.00018,2]
[402896672,1768956642099,-6626595.46969252,0.00018,2]
[402896673,1768956642108,-213650.47729686,0.00018,2]
[402896674,1768956642117,-31921.88306899,0.00018,2]
[402896675,1768956642126,-221685.19200919,0.00018,2]
[402896676,1768956642235,-696.78608893,0.00018,2]
[402896677,1768956642246,-1296.21804174,0.00018,2]
[402896678,1768956642257,-452.51663877,0.00018,2]
[402896697,1768956643199,-276.00947847,0.00016497,2]
[402896698,1768956643417,-223.99052153,0.00016497,2]
[402896699,1768956643427,-522.93440528,0.00017843,2]
[402896700,1768956643475,-800.89586511,0.00017843,2]
[402896734,1768956646102,-16981.27772621,0.00017843,2]
[402896740,1768956646154,-1726.15897997,0.00017843,2]
[402896743,1768956646167,-1342.89262422,0.00017843,2]
[402896745,1768956646179,-5797.10009,0.00017843,2]
[402896748,1768956646198,-660.58250799,0.00017843,2]
[402896750,1768956646208,-8613.16365474,0.00017872,2]
[402896751,1768956646230,-3200.0,0.00017872,2]
[402896752,1768956646263,-598.1162004,0.00017872,2]
[402896753,1768956646276,-15420.56234364,0.00017872,2]
[402896754,1768956646286,-2775.43359134,0.00018,2]
[402896762,1768956652621,838.93,0.00015886,2]
[402896763,1768956728427,872523.3504,0.00016398,2]
[402896764,1768956733192,178.0,0.000164,2]
[402896765,1768957074476,150.0,0.00015886,2]
[402896766,1768957215331,3240.0,0.00015886,2]
[402896767,1768957317798,160.0,0.0001641,2]
[402896768,1768957318653,160.0,0.0001641,2]
[402896769,1768957319922,160.0,0.0001641,2]
[402896770,1768957391459,-1200.0,0.00016561,2]
[402896771,1768957391483,-187.94379678,0.00016561,2]
[402896772,1768957391509,-289.0,0.00016561,2]
[402896773,1768957391534,-300.0,0.00016561,2]
[402896774,1768957391574,-300.0,0.00016561,2]
[402896775,1768957391599,-195.0,0.00016561,2]
[402896776,1768957391622,-250.0,0.00016561,2]
[402896777,1768957391645,-500.0,0.00016562,2]
[402896778,1768957391667,-500.0,0.00016562,2]
[402896779,1768957391689,-500.0,0.00016562,2]
[402896780,1768957391712,-500.0,0.00016562,2]
[402896781,1768957391737,-500.0,0.00016562,2]
[402896782,1768957391759,-500.0,0.00016562,2]
[402896783,1768957391781,-500.0,0.00016562,2]
[402896784,1768957391805,-500.0,0.00016562,2]
[402896785,1768957391828,-500.0,0.00016562,2]
[402896786,1768957391852,-471.83883324,0.00016562,2]
[402896787,1768957391875,-500.0,0.00016562,2]
[402896788,1768957391898,-2139.36,0.00016622,2]
[402896789,1768957391926,-318.43565406,0.00016653,2]
[402896790,1768957391951,-555.67793319,0.00016653,2]
[402896791,1768957391974,-635.74,0.00016654,2]
[402896792,1768957391997,-500.0,0.00016664,2]
[402896793,1768957392020,-838.93,0.00016681,2]
[402896794,1768957392043,-150.00715627,0.0001672,2]
[402896795,1768957392067,-2530.8,0.00016957,2]
[402896796,1768957392091,-162.5,0.00016961,2]
[402896797,1768957392115,-2530.8,0.00017001,2]
[402896798,1768957392138,-2530.8,0.00017046,2]
[402896799,1768957392160,-500.0,0.00017062,2]
[402896800,1768957392183,-500.0,0.00017062,2]
[402896801,1768957392205,-500.0,0.00017062,2]
[402896802,1768957392228,-500.0,0.00017062,2]
[402896803,1768957392250,-500.0,0.00017062,2]
[402896804,1768957392273,-500.0,0.00017062,2]
[402896805,1768957392295,-500.0,0.00017062,2]
[402896806,1768957392317,-500.0,0.00017062,2]
[402896807,1768957392340,-500.0,0.00017062,2]
[402896808,1768957392363,-151.0,0.00017062,2]
[402896809,1768957392385,-500.0,0.00017062,2]
[402896810,1768957392408,-151.0,0.00017062,2]
[402896811,1768957392431,-492.16662646,0.00017062,2]
[402896812,1768957400416,875.88,0.00013989,2]
[402896813,1768957599130,-422.40902551,0.00016562,2]
[402896814,1768957786033,150.0,0.000226,120]
[402896815,1768957805901,168.0,0.00021899,120]
[402896861,1768957832509,-230.0,0.00016561,2]
[402896862,1768957832518,-105.26580545,0.00016561,2]
[402896863,1768957832529,-1094.73419455,0.00016561,2]
[402896864,1768957832538,-289.0,0.00016561,2]
[402896866,1768957832547,-250.0,0.00016562,2]
[402896868,1768957832556,-77.59097449,0.00016562,2]
[402896870,1768957832564,-280.31810765,0.00016562,2]
[402896872,1768957832575,-305.16684554,0.00016562,2]
[402896874,1768957832584,-500.0,0.00016562,2]
[402896876,1768957832592,-190.12369568,0.00016562,2]
[402896877,1768957832601,-500.0,0.00016562,2]
[402896878,1768957832609,-472.73300168,0.00016562,2]
[402896879,1768957832618,-180.96,0.00016591,2]
[402896881,1768957832627,-1000.0,0.00016591,2]
[402896883,1768957832636,-200.0,0.00016591,2]
[402896885,1768957832645,-338.09,0.00016658,2]
[402896886,1768957832654,-150.0000016,0.00016721,2]
[402896887,1768957832666,-300.0,0.0001706,2]
[402896888,1768957832674,-254.03711572,0.00017061,2]
[402896889,1768957832683,-168.36921976,0.00017061,2]
[402896890,1768957832692,-150.56350044,0.00017061,2]
[402896891,1768957832702,-500.0,0.00017073,2]
[402896892,1768957832712,-516.06560751,0.00017073,2]
[402896893,1768957832721,-500.0,0.00017073,2]
[402896894,1768957832730,-500.0,0.00017073,2]
[402896895,1768957832739,-500.19742705,0.00017073,2]
[402896896,1768957832748,-500.0,0.00017073,2]
[402896897,1768957832757,-79.04618831,0.00017073,2]
[402896898,1768957832767,-335.65111529,0.00017073,2]
[402896899,1768957832821,-85.3026964,0.00017073,2]
[402896900,1768957832830,-500.0,0.00017073,2]
[402896901,1768957832838,-500.0,0.00017073,2]
[402896902,1768957832847,-500.0,0.00017073,2]
[402896903,1768957832856,-225.32355576,0.00017073,2]
[402896904,1768957832865,-415.27374784,0.00017073,2]
[402896905,1768957832876,-84.72625216,0.00017073,2]
[402896906,1768957832886,-2079.24776179,0.00017091,2]
[402896907,1768957832896,-320.124,0.00017091,2]
[402896908,1768957832907,-131.42823821,0.00017091,2]
[402896909,1768957832916,-203.85097415,0.00017135,2]
[402896910,1768957832927,-999.67682255,0.00017135,2]
[402896911,1768957832937,-1327.2722033,0.00017135,2]
[402896912,1768957832946,-1252.55617522,0.0001718,2]
[402896913,1768957832999,-1278.24382478,0.0001718,2]
[402896914,1768957833009,-413.24780221,0.00017192,2]
[402896915,1768957833019,-2530.8,0.00017224,2]
[402896916,1768957833029,-151.0,0.00017268,2]
[402896917,1768957833038,-151.0,0.00017268,2]
[402896918,1768957833049,-151.0,0.00017268,2]
[402896919,1768957833058,-151.0,0.00017268,2]
[402896920,1768957833067,-151.0,0.00017268,2]
[402896921,1768957833076,-151.0,0.00017268,2]
[402896922,1768957833085,-500.0,0.00017268,2]
[402896923,1768957833095,-151.0,0.00017268,2]
[402896924,1768957833105,-151.0,0.00017268,2]
[402896925,1768957833115,-151.0,0.00017268,2]
[402896926,1768957833124,-151.0,0.00017268,2]
[402896927,1768957833133,-151.0,0.00017268,2]
[402896928,1768957833143,-151.0,0.00017268,2]
[402896929,1768957833153,-151.0,0.00017268,2]
[402896930,1768957833163,-151.0,0.00017268,2]
[402896931,1768957833173,-500.0,0.00017268,2]
[402896932,1768957833182,-500.0,0.00017268,2]
[402896933,1768957833192,-500.0,0.00017268,2]
[402896934,1768957833201,-500.0,0.00017268,2]
[402896935,1768957833213,-500.0,0.00017268,2]
[402896936,1768957833223,-500.0,0.00017268,2]
[402896937,1768957833232,-500.0,0.00017268,2]
[402896938,1768957833242,-507.83337354,0.00017268,2]
[402896939,1768957833251,-151.0,0.00017268,2]
[402896940,1768957833261,-151.0,0.00017268,2]
[402896941,1768957833270,-151.0,0.00017268,2]
[402896942,1768957833279,-151.0,0.00017268,2]
[402896943,1768957833288,-151.0,0.00017268,2]
[402896944,1768957833298,-151.0,0.00017268,2]
[402896945,1768957833308,-151.0,0.00017268,2]
[402896946,1768957833317,-151.0,0.00017268,2]
[402896947,1768957833326,-151.0,0.00017268,2]
[402896948,1768957833335,-356.64188747,0.00017268,2]
[402896949,1768957833345,-2530.8,0.00017269,2]
[402896950,1768957833354,-246.0,0.00017278,2]
[402896951,1768957833363,-4164.02867438,0.00017279,2]
[402896952,1768957833375,-5835.96132562,0.00017279,2]
[402896953,1768957833384,-19882.56339455,0.00017279,2]
[402896954,1768957833395,-703.96192003,0.00017279,2]
[402896955,1768957833538,-12755.75468542,0.00017279,2]
[402896956,1768957833548,-2853.43,0.00017279,2]
[402896957,1768957833557,-9999.99,0.00017279,2]
[402896958,1768957833567,-635.74,0.00017279,2]
[402896959,1768957833576,-2530.8,0.00017314,2]
[402896960,1768957833586,-2530.8,0.00017358,2]
[402896961,1768957833595,-2530.8,0.00017403,2]
[402896962,1768957833605,-2156.61852183,0.00017437,2]
[402896963,1768957833615,-295.70330475,0.00017438,2]
[402896964,1768957833649,-1014.02545008,0.00017438,2]
[402896965,1768957838263,-722.46490153,0.00017438,2]
[402896966,1768957838320,-4085.13462894,0.00017438,2]
[402896967,1768957838330,-2530.8,0.00017448,2]
[402896968,1768957838339,-838.93,0.00017475,2]
[402896969,1768957838349,-2530.8,0.00017492,2]
[402896970,1768957838359,-2530.8,0.00017537,2]
[402896971,1768957838369,-2530.8,0.00017581,2]
[402896972,1768957838378,-500.0,0.00017616,2]
[402896973,1768957838387,-2530.8,0.00017626,2]
[402896974,1768957838396,-2530.8,0.00017671,2]
[402896975,1768957838405,-500.0,0.00017699,2]
[402896976,1768957838414,-500.0,0.00017699,2]
[402896977,1768957838423,-500.0,0.00017699,2]
[402896978,1768957838433,-150.0,0.00017699,2]
[402896979,1768957838443,-500.0,0.00017699,2]
[402896981,1768957838452,-150.0,0.00017699,2]
[402896982,1768957838461,-790.0,0.00017699,2]
[402896984,1768957838470,-500.0,0.00017699,2]
[402896986,1768957838480,-150.0,0.000177,2]
[402896987,1768957838488,-2530.8,0.00017715,2]
[402896988,1768957838498,-1084.85121755,0.00017753,5]
[402896989,1768957838507,-500.0,0.00017754,2]
[402896990,1768957838516,-500.0,0.00017754,2]
[402896991,1768957838525,-500.0,0.00017754,2]
[402896992,1768957838535,-500.0,0.00017754,2]
[402896993,1768957838544,-150.0,0.00017754,2]
[402896994,1768957838553,-790.0,0.00017754,2]
[402896995,1768957838562,-500.0,0.00017754,2]
[402896996,1768957838572,-150.0,0.00017755,2]
[402896997,1768957838581,-2530.8,0.0001776,2]
[402896998,1768957838600,-160.0,0.000178,3]
[402896999,1768957838609,-160.0,0.000178,3]
[402897000,1768957838618,-2530.8,0.00017805,2]
[402897001,1768957838627,-500.0,0.00017809,2]
[402897002,1768957838637,-500.0,0.00017809,2]
[402897004,1768957838646,-570.90733509,0.00017809,2]
[402897005,1768957838655,-500.0,0.00017809,2]
[402897007,1768957838668,-150.0,0.00017809,2]
[402897009,1768957838677,-790.0,0.00017809,2]
[402897011,1768957838685,-500.0,0.00017809,2]
[402897013,1768957838693,-158.01034321,0.0001781,2]
[402897015,1768957838703,-171.00579878,0.00017815,2]
[402897016,1768957838713,-500.0,0.00017863,2]
[402897018,1768957838723,-500.0,0.00017863,2]
[402897021,1768957838732,-500.0,0.00017863,2]
[402897022,1768957838742,-150.0,0.00017863,2]
[402897023,1768957838751,-790.0,0.00017863,2]
[402897025,1768957838760,-500.0,0.00017863,2]
[402897028,1768957838770,-3204.39278617,0.000179,2]
[402897030,1768957838780,-202.78060402,0.000179,2]
[402897032,1768957838791,-635.74,0.00017903,2]
[402897034,1768957838800,-180.0,0.00017914,2]
[402897035,1768957838809,-171.31483436,0.00017914,2]
[402897037,1768957838818,-500.0,0.00017918,2]
[402897039,1768957838827,-500.0,0.00017918,2]
[402897042,1768957838838,-500.0,0.00017918,2]
[402897044,1768957838848,-202.1982999,0.00017918,2]
[402897046,1768957838857,-790.0,0.00017918,2]
[402897047,1768957838866,-500.0,0.00017918,2]
[402897049,1768957838876,-500.0,0.00017973,2]
[402897051,1768957838885,-500.0,0.00017973,2]
[402897053,1768957838894,-500.0,0.00017973,2]
[402897055,1768957838903,-790.0,0.00017973,2]
[402897057,1768957838913,-323.67994305,0.00017973,2]
[402897059,1768957838923,-511.523936,0.00017998,2]
[402897061,1768957838933,-193.55585066,0.00017998,2]
[402897063,1768957838943,-13666.095101,0.00017999,2]
[402897065,1768957838952,-6160.94735159,0.00017999,2]
[402897068,1768957838964,-1275.36724596,0.00017999,2]
[402897070,1768957838976,-1428.46654749,0.00017999,2]
[402897072,1768957838988,-6074.99031596,0.00017999,2]
[402897074,1768957838999,-157.3267602,0.00017999,2]
[402897076,1768957839010,-239.00959106,0.00017999,2]
[402897078,1768957839020,-500.0,0.00017999,2]
[402897080,1768957839029,-500.0,0.00017999,2]
[402897082,1768957839039,-110449.53919343,0.00018,2]
[402897087,1768957839124,-556.56620533,0.00018,2]
[402897088,1768957839187,-1650.0,0.00018,2]
[402897089,1768957839198,-816.58595,0.00018,2]
[402897090,1768957839210,-8758.83210967,0.00018,2]
[402897091,1768957840628,-187.0545422,0.00017072,2]
[402897092,1768957840648,-57017.39363707,0.00018,2]
[402897093,1768957840659,-200.0,0.00018,2]
[402897094,1768957840671,-200.0,0.00018,2]
[402897095,1768957840680,-500.0,0.00018028,2]
[402897096,1768957840689,-500.0,0.00018028,2]
[402897097,1768957840698,-500.0,0.00018028,2]
[402897098,1768957840709,-790.0,0.00018028,2]
[402897099,1768957840720,-500.0,0.00018083,2]
[402897101,1768957840729,-500.0,0.00018083,2]
[402897102,1768957840741,-250.0,0.00018083,2]
[402897104,1768957840750,-790.0,0.00018083,2]
[402897105,1768957840760,-152.0,0.00018092,2]
[402897106,1768957840769,-152.0,0.00018092,2]
[402897107,1768957840779,-152.0,0.00018092,2]
[402897109,1768957840788,-152.0,0.00018092,2]
[402897111,1768957840797,-152.0,0.00018092,2]
[402897112,1768957840806,-152.0,0.00018092,2]
[402897113,1768957840815,-152.0,0.00018092,2]
[402897114,1768957840824,-201.0,0.00018129,2]
[402897115,1768957840833,-500.0,0.00018137,2]
[402897116,1768957840842,-462.0,0.00018137,2]
[402897117,1768957840852,-790.0,0.00018137,2]
[402897118,1768957840861,-150.0000016,0.00018177,3]
[402897119,1768957840870,-1680.0,0.00018187,2]
[402897120,1768957840885,-500.0,0.00018192,2]
[402897121,1768957840894,-790.0,0.00018192,2]
[402897122,1768957840903,-166.66,0.00018204,2]
[402897123,1768957840912,-300.0,0.00018217,2]
[402897124,1768957840924,-1277.8899966,0.00018217,2]
[402897125,1768957840933,-246.74931554,0.00018217,2]
[402897126,1768957840942,-250.0,0.00018217,2]
[402897127,1768957840950,-250.0,0.00018218,2]
[402897128,1768957840959,-195.0,0.00018218,2]
[402897129,1768957840969,-300.0,0.00018218,2]
[402897130,1768957840979,-300.0,0.00018218,2]
[402897131,1768957840987,-195.0,0.00018218,2]
[402897132,1768957840996,-195.0,0.00018218,2]
[402897133,1768957841006,-300.0,0.00018218,2]
[402897134,1768957841015,-500.0,0.00018247,2]
[402897135,1768957841024,-790.0,0.00018247,2]
[402897136,1768957841033,-838.93,0.00018269,2]
[402897137,1768957841042,-150.0,0.000183,7]
[402897138,1768957841051,-500.0,0.00018302,2]
[402897139,1768957841061,-790.0,0.00018302,2]
[402897140,1768957841070,-500.0,0.00018357,2]
[402897141,1768957841079,-790.0,0.00018357,2]
[402897142,1768957841089,-500.0,0.00018411,2]
[402897143,1768957841098,-790.0,0.00018411,2]
[402897144,1768957841107,-500.0,0.00018466,2]
[402897145,1768957841116,-790.0,0.00018466,2]
[402897146,1768957841127,-193.21642172,0.00018521,2]
[402897147,1768957841136,-790.0,0.00018521,2]
[402897148,1768957841146,-635.74,0.00018528,2]
[402897149,1768957841156,-166.66,0.00018572,2]
[402897150,1768957841165,-790.0,0.00018576,2]
[402897151,1768957841174,-790.0,0.00018631,2]
[402897152,1768957841183,-420.0,0.00018632,2]
[402897153,1768957841193,-1000.0,0.00018665,2]
[402897154,1768957841202,-790.0,0.00018685,2]
[402897155,1768957841211,-338.09,0.0001874,2]
[402897156,1768957841220,-790.0,0.0001874,2]
[402897157,1768957841229,-790.0,0.00018795,2]
[402897158,1768957841238,-790.0,0.0001885,2]
[402897159,1768957841249,-165.09,0.00018894,2]
[402897160,1768957841258,-790.0,0.00018904,2]
[402897161,1768957841267,-166.66,0.0001894,2]
[402897162,1768957841276,-805.5860797,0.00018959,2]
[402897163,1768957841285,-300.0,0.00019,2]
[402897164,1768957841294,-838.93,0.00019064,2]
[402897165,1768957841303,-231.40398252,0.00019082,2]
[402897166,1768957841311,-635.74,0.00019152,2]
[402897167,1768957841323,-399.47,0.00019178,30]
[402897168,1768957841333,-166.66,0.00019308,2]
[402897169,1768957841342,-179.41,0.00019351,2]
[402897170,1768957841352,-151.0,0.00019484,2]
[402897171,1768957841360,-506.0,0.000196,2]
[402897172,1768957841369,-150.0000016,0.00019633,10]
[402897173,1768957841378,-155.0,0.00019799,2]
[402897174,1768957841388,-2351.0,0.00019972,2]
[402897175,1768957841397,-13666.095101,0.00020003,2]
[402897176,1768957841407,-6117.3282853,0.00020038,2]
[402897177,1768957841415,-11788.0,0.00020328,2]
[402897178,1768957841424,-201.0,0.00020388,2]
[402897179,1768957841433,-500.0,0.00020458,2]
[402897180,1768957841442,-500.0,0.00020458,2]
[402897181,1768957841451,-3204.39278617,0.00020668,2]
[402897182,1768957841459,-14939.771461,0.00020693,2]
[402897183,1768957841469,-2377.0763726,0.00020736,2]
[402897184,1768957841477,-1000.0,0.00020739,2]
[402897185,1768957841486,-338.09,0.00020822,2]
[402897186,1768957841495,-179.41,0.00020948,2]
[402897187,1768957841505,-160.0,0.00021,5]
[402897188,1768957841515,-160.0,0.00021,5]
[402897189,1768957841525,-150.0000016,0.0002109,18]
[402897190,1768957841534,-181.25,0.00021106,2]
[402897191,1768957841543,-151.0,0.00021132,2]
[402897192,1768957841552,-1264.0,0.00021132,2]
[402897193,1768957841560,-1264.0,0.00021132,2]
[402897194,1768957841570,-1264.0,0.00021132,2]
[402897195,1768957841579,-1264.0,0.00021132,2]
[402897196,1768957841588,-1264.0,0.00021132,2]
[402897197,1768957841599,-1264.0,0.00021132,2]
[402897198,1768957841608,-1264.0,0.00021132,2]
[402897199,1768957841618,-1264.0,0.00021132,2]
[402897200,1768957841627,-1264.0,0.00021132,2]
[402897201,1768957841638,-530.3974317,0.00021354,2]
[402897202,1768957841647,-322.6107,0.00021522,2]
[402897203,1768957841659,-514.84070869,0.00021522,2]
[402897204,1768957841670,-8589.05684063,0.00021522,2]
[402897205,1768957841679,-250.0,0.00021522,2]
[402897206,1768957841687,-250.0,0.00021522,2]
[402897207,1768957841696,-500.0,0.00021522,2]
[402897208,1768957841706,-174.61919141,0.00021522,2]
[402897209,1768957841716,-250.0,0.00021522,2]
[402897210,1768957841725,-500.0,0.00021522,2]
[402897211,1768957841736,-500.0,0.00021522,2]
[402897212,1768957841744,-250.0,0.00021522,2]
[402897213,1768957841754,-500.0,0.00021522,2]
[402897214,1768957841763,-250.0,0.00021522,2]
[402897215,1768957841772,-500.0,0.00021522,2]
[402897216,1768957841782,-250.0,0.00021522,2]
[402897217,1768957841790,-500.0,0.00021522,2]
[402897218,1768957841799,-250.0,0.00021522,2]
[402897219,1768957841808,-578.20924308,0.00021522,2]
[402897220,1768957841817,-500.0,0.00021522,2]
[402897221,1768957841826,-250.0,0.00021522,2]
[402897222,1768957841835,-500.0,0.00021522,2]
[402897223,1768957841848,-250.0,0.00021522,2]
[402897224,1768957841857,-500.0,0.00021522,2]
[402897225,1768957841866,-250.0,0.00021522,2]
[402897226,1768957841875,-500.0,0.00021522,2]
[402897227,1768957841884,-151.0,0.00021522,2]
[402897228,1768957841893,-500.0,0.00021522,2]
[402897229,1768957841902,-302.96874146,0.00021522,2]
[402897230,1768957841911,-500.0,0.00021522,2]
[402897231,1768957841920,-500.0,0.00021522,2]
[402897232,1768957841929,-500.0,0.00021522,2]
[402897233,1768957841938,-500.0,0.00021522,2]
[402897234,1768957841947,-500.0,0.00021522,2]
[402897235,1768957841956,-500.0,0.00021522,2]
[402897236,1768957841965,-500.0,0.00021522,2]
[402897237,1768957841974,-500.0,0.00021522,2]
[402897238,1768957841983,-500.0,0.00021522,2]
[402897239,1768957841993,-250.0,0.00021522,2]
[402897240,1768957842002,-500.0,0.00021522,2]
[402897241,1768957842011,-250.0,0.00021522,2]
[402897242,1768957842024,-500.0,0.00021522,2]
[402897243,1768957842033,-500.0,0.00021522,2]
[402897244,1768957842042,-250.0,0.00021522,2]
[402897245,1768957842051,-500.0,0.00021522,2]
[402897246,1768957842061,-500.0,0.00021522,2]
[402897247,1768957842070,-250.0,0.00021522,2]
[402897248,1768957842078,-250.0,0.00021522,2]
[402897249,1768957842088,-500.0,0.00021522,2]
[402897250,1768957842097,-500.0,0.00021522,2]
[402897251,1768957842107,-250.0,0.00021522,2]
[402897252,1768957842116,-500.0,0.00021522,2]
[402897253,1768957842126,-250.0,0.00021522,2]
[402897254,1768957842135,-500.0,0.00021522,2]
[402897255,1768957842145,-500.0,0.00021522,2]
[402897256,1768957842154,-250.0,0.00021522,2]
[402897257,1768957842163,-500.0,0.00021522,2]
[402897258,1768957842172,-250.0,0.00021522,2]
[402897259,1768957842181,-500.0,0.00021522,2]
[402897260,1768957842190,-500.0,0.00021522,2]
[402897261,1768957842199,-250.0,0.00021522,2]
[402897262,1768957842208,-500.0,0.00021522,2]
[402897263,1768957842217,-250.0,0.00021522,2]
[402897264,1768957842230,-500.0,0.00021522,2]
[402897265,1768957842240,-2567.0,0.00021522,2]
[402897266,1768957842249,-289.17042535,0.00021522,2]
[402897267,1768957842258,-500.0,0.00021522,2]
[402897268,1768957842267,-500.0,0.00021522,2]
[402897269,1768957842276,-500.0,0.00021522,2]
[402897270,1768957842285,-500.0,0.00021522,2]
[402897271,1768957842295,-250.0,0.00021522,2]
[402897272,1768957842305,-500.0,0.00021522,2]
[402897273,1768957842315,-250.0,0.00021522,2]
[402897274,1768957842324,-250.0,0.00021522,2]
[402897275,1768957842333,-500.0,0.00021522,2]
[402897276,1768957842342,-500.0,0.00021522,2]
[402897277,1768957842351,-571.83614405,0.00021522,2]
[402897278,1768957842361,-500.0,0.00021522,2]
[402897279,1768957842370,-500.0,0.00021522,2]
[402897280,1768957842380,-500.0,0.00021522,2]
[402897281,1768957842389,-500.0,0.00021522,2]
[402897282,1768957842398,-250.0,0.00021522,2]
[402897283,1768957842407,-250.0,0.00021522,2]
[402897284,1768957842416,-250.0,0.00021522,2]
[402897285,1768957842425,-250.0,0.00021522,2]
[402897286,1768957842434,-250.0,0.00021522,2]
[402897287,1768957842443,-250.0,0.00021522,2]
[402897288,1768957842452,-250.0,0.00021522,2]
[402897289,1768957842462,-250.0,0.00021522,2]
[402897290,1768957842473,-250.0,0.00021522,2]
[402897291,1768957842482,-1515.81946332,0.00021522,2]
[402897292,1768957842492,-743.50770149,0.00021522,2]
[402897293,1768957842502,-250.0,0.00021522,2]
[402897294,1768957842511,-250.0,0.00021522,2]
[402897295,1768957842521,-500.0,0.00021522,2]
[402897296,1768957842530,-500.0,0.00021522,2]
[402897297,1768957842539,-500.0,0.00021522,2]
[402897298,1768957842548,-500.0,0.00021522,2]
[402897299,1768957842557,-500.0322,0.00021708,2]
[402897300,1768957842567,-5000.0,0.00021918,2]
[402897301,1768957842577,-3093.0,0.00021932,2]
[402897302,1768957842586,-500.0,0.00022,14]
[402897303,1768957842595,-13666.095101,0.00022008,2]
[402897304,1768957842605,-533.88981491,0.0002207,2]
[402897305,1768957842620,-181.08010149,0.0002207,2]
[402897306,1768957842630,-281.38631223,0.0002207,2]
[402897307,1768957842640,-153.41,0.00022254,2]
[402897308,1768957842650,-179.41,0.00022544,2]
[402897309,1768957842662,-150.0000016,0.00022546,25]
[402897310,1768957842673,-553.64373807,0.00022618,2]
[402897311,1768957842683,-187.78006525,0.00022618,2]
[402897312,1768957842693,-506.0,0.0002262,4]
[402897313,1768957842703,-6117.3282853,0.00022637,2]
[402897314,1768957842712,-201.0,0.00022647,2]
[402897315,1768957842726,-177.42742403,0.00022769,7]
[402897316,1768957842738,-313.00300713,0.00022769,7]
[402897317,1768957842749,-468.23377919,0.00022769,7]
[402897318,1768957842758,-633.5307,0.00022769,7]
[402897319,1768957842768,-1000.0,0.00022813,2]
[402897320,1768957842777,-322.6107,0.00022891,2]
[402897321,1768957842787,-338.09,0.00022904,2]
[402897322,1768957842796,-168.0,0.00022994,120]
[402897323,1768957842805,-160.0,0.00023,7]
[402897324,1768957842815,-160.0,0.00023,7]
[402897325,1768957842824,-574.12855637,0.00023166,2]
[402897326,1768957842833,-194.72792766,0.00023166,2]
[402897327,1768957842842,-14939.771461,0.00023387,2]
[402897328,1768957842852,-3204.39278617,0.00023437,2]
[402897329,1768957842861,-1000.0,0.00023562,2]
[402897330,1768957842871,-595.37131296,0.00023714,2]
[402897331,1768957842880,-177.02417306,0.00023714,2]